Workbook

Sheet Overview
B2: Overview of Using Excel Calculation Options
B4: Product | C4: Price | D4: Quantity | E4: Sales | F4: Formulas
B5: Desktop | C5: 200 | D5: 20 | E5: =C5*D5 -> 4000 | F5: =_xlfn.FORMULATEXT(E5) -> =C5*D5
B6: Laptop | C6: 500 | D6: 15 | E6: =C6*D6 -> 7500 | F6: =_xlfn.FORMULATEXT(E6) -> =C6*D6
B7: Smartphone | C7: 400 | D7: 14 | E7: 5600 | F7: =C7*D7
B8: Keyboard | C8: 50 | D8: 6 | E8: 300 | F8: =C8*D8
B9: Mouse | C9: 20 | D9: 10 | E9: 200 | F9: =C9*D9
B10: Printer | C10: 100 | D10: 15 | E10: 1500 | F10: =C10*D10
B11: CPU | C11: 150 | D11: 14 | E11: 2100 | F11: =C11*D11
B12: Total Sales | E12: =SUM(E5:E11) -> 21200 | F12: =SUM(E5:E11)
B14: >>Changing Values in Cells D5 and D6 will Automatically Change Values in Cells E5, E6 and E12

Sheet Dataset
B2: Dataset of Using Excel Calculation Options
B4: Product | C4: Price | D4: Quantity | E4: Sales | F4: Formulas
B5: Desktop | C5: 200 | D5: 25 | E5: =C5*D5 -> 5000 | F5: =_xlfn.FORMULATEXT(E5) -> =C5*D5
B6: Laptop | C6: 500 | D6: 20 | E6: =C6*D6 -> 10000 | F6: =_xlfn.FORMULATEXT(E6) -> =C6*D6
B7: Smartphone | C7: 400 | D7: 14 | E7: 5600 | F7: =C7*D7
B8: Keyboard | C8: 50 | D8: 6 | E8: 300 | F8: =C8*D8
B9: Mouse | C9: 20 | D9: 10 | E9: 200 | F9: =C9*D9
B10: Printer | C10: 100 | D10: 15 | E10: 1500 | F10: =C10*D10
B11: CPU | C11: 150 | D11: 14 | E11: 2100 | F11: =C11*D11
B12: Total Sales | E12: =SUM(E5:E11) -> 24700 | F12: =SUM(E5:E11)

Sheet Calculation Options Automatic
B2: Changing Calculation Options to Automatic | I2: Practice Section
B4: Product | C4: Price | D4: Quantity | E4: Sales | I4: Product | J4: Price | K4: Quantity | L4: Sales
B5: Desktop | C5: 200 | D5: 20 | E5: =C5*D5 -> 4000 | I5: Desktop | J5: 200 | K5: 25 | L5: =J5*K5 -> 5000
B6: Laptop | C6: 500 | D6: 15 | E6: =C6*D6 -> 7500 | I6: Laptop | J6: 500 | K6: 20 | L6: =J6*K6 -> 10000
B7: Smartphone | C7: 400 | D7: 14 | E7: 5600 | I7: Smartphone | J7: 400 | K7: 14 | L7: 5600
B8: Keyboard | C8: 50 | D8: 6 | E8: 300 | I8: Keyboard | J8: 50 | K8: 6 | L8: 300
B9: Mouse | C9: 20 | D9: 10 | E9: 200 | I9: Mouse | J9: 20 | K9: 10 | L9: 200
B10: Printer | C10: 100 | D10: 15 | E10: 1500 | I10: Printer | J10: 100 | K10: 15 | L10: 1500
B11: CPU | C11: 150 | D11: 14 | E11: 2100 | I11: CPU | J11: 150 | K11: 14 | L11: 2100
B12: Total Sales | E12: =SUM(E5:E11) -> 21200 | I12: Total Sales | L12: =SUM(L5:L11) -> 24700
B14: >>Changing Values in Cells D5 and D6 will Automatically Change Values in Cells E5, E6 and E12

Sheet Calculation Options Manual
B2: Changing Calculation Options to Manual | I2: Practice Section
B4: Product | C4: Price | D4: Quantity | E4: Sales | I4: Product | J4: Price | K4: Quantity | L4: Sales
B5: Desktop | C5: 200 | D5: 20 | E5: =C5*D5 -> 4000 | I5: Desktop | J5: 200 | K5: 25 | L5: =J5*K5 -> 5000
B6: Laptop | C6: 500 | D6: 15 | E6: =C6*D6 -> 7500 | I6: Laptop | J6: 500 | K6: 20 | L6: =J6*K6 -> 10000
B7: Smartphone | C7: 400 | D7: 14 | E7: 5600 | I7: Smartphone | J7: 400 | K7: 14 | L7: 5600
B8: Keyboard | C8: 50 | D8: 6 | E8: 300 | I8: Keyboard | J8: 50 | K8: 6 | L8: 300
B9: Mouse | C9: 20 | D9: 10 | E9: 200 | I9: Mouse | J9: 20 | K9: 10 | L9: 200
B10: Printer | C10: 100 | D10: 15 | E10: 1500 | I10: Printer | J10: 100 | K10: 15 | L10: 1500
B11: CPU | C11: 150 | D11: 14 | E11: 2100 | I11: CPU | J11: 150 | K11: 14 | L11: 2100
B12: Total Sales | E12: =SUM(E5:E11) -> 21200 | I12: Total Sales | L12: =SUM(L5:L11) -> 24700
B14: >>Changing Values in Cells D5 and D6 will not Change Values in Cells E5, E6 and E12

Sheet Manually Calculating Sheet
B2: Manually Calculating Sheet from Formulas Tab | I2: Practice Section
B4: Product | C4: Price | D4: Quantity | E4: Sales | I4: Product | J4: Price | K4: Quantity | L4: Sales
B5: Desktop | C5: 200 | D5: 20 | E5: =C5*D5 -> 4000 | I5: Desktop | J5: 200 | K5: 25 | L5: =J5*K5 -> 5000
B6: Laptop | C6: 500 | D6: 15 | E6: =C6*D6 -> 7500 | I6: Laptop | J6: 500 | K6: 20 | L6: =J6*K6 -> 10000
B7: Smartphone | C7: 400 | D7: 14 | E7: 5600 | I7: Smartphone | J7: 400 | K7: 14 | L7: 5600
B8: Keyboard | C8: 50 | D8: 6 | E8: 300 | I8: Keyboard | J8: 50 | K8: 6 | L8: 300
B9: Mouse | C9: 20 | D9: 10 | E9: 200 | I9: Mouse | J9: 20 | K9: 10 | L9: 200
B10: Printer | C10: 100 | D10: 15 | E10: 1500 | I10: Printer | J10: 100 | K10: 15 | L10: 1500
B11: CPU | C11: 150 | D11: 14 | E11: 2100 | I11: CPU | J11: 150 | K11: 14 | L11: 2100
B12: Total Sales | E12: =SUM(E5:E11) -> 21200 | I12: Total Sales | L12: =SUM(L5:L11) -> 24700
B14: >>Change Values in Cells D5 and D6

Sheet Adding Manual and Automatic
B2: Adding Manual and Automatic Commands | I2: Practice Section
B4: Product | C4: Price | D4: Quantity | E4: Sales | I4: Product | J4: Price | K4: Quantity | L4: Sales
B5: Desktop | C5: 200 | D5: 25 | E5: =C5*D5 -> 5000 | I5: Desktop | J5: 200 | K5: 25 | L5: =J5*K5 -> 5000
B6: Laptop | C6: 500 | D6: 20 | E6: =C6*D6 -> 10000 | I6: Laptop | J6: 500 | K6: 20 | L6: =J6*K6 -> 10000
B7: Smartphone | C7: 400 | D7: 14 | E7: 5600 | I7: Smartphone | J7: 400 | K7: 14 | L7: 5600
B8: Keyboard | C8: 50 | D8: 6 | E8: 300 | I8: Keyboard | J8: 50 | K8: 6 | L8: 300
B9: Mouse | C9: 20 | D9: 10 | E9: 200 | I9: Mouse | J9: 20 | K9: 10 | L9: 200
B10: Printer | C10: 100 | D10: 15 | E10: 1500 | I10: Printer | J10: 100 | K10: 15 | L10: 1500
B11: CPU | C11: 150 | D11: 14 | E11: 2100 | I11: CPU | J11: 150 | K11: 14 | L11: 2100
B12: Total Sales | E12: =SUM(E5:E11) -> 24700 | I12: Total Sales | L12: =SUM(L5:L11) -> 24700

Sheet Using VBA Macro
B2: Using VBA Macro to Change Calculation Options | H2: Practice Section
B4: Product | C4: Price | D4: Quantity | E4: Sales | H4: Product | I4: Price | J4: Quantity | K4: Sales
B5: Desktop | C5: 200 | D5: 25 | E5: =C5*D5 -> 5000 | H5: Desktop | I5: 200 | J5: 25 | K5: =I5*J5 -> 5000
B6: Laptop | C6: 200 | D6: 15 | E6: =C6*D6 -> 3000 | H6: Laptop | I6: 500 | J6: 20 | K6: =I6*J6 -> 10000
B7: Smartphone | C7: 400 | D7: 14 | E7: 5600 | H7: Smartphone | I7: 400 | J7: 14 | K7: 5600
B8: Keyboard | C8: 50 | D8: 6 | E8: 300 | H8: Keyboard | I8: 50 | J8: 6 | K8: 300
B9: Mouse | C9: 20 | D9: 10 | E9: 200 | H9: Mouse | I9: 20 | J9: 10 | K9: 200
B10: Printer | C10: 100 | D10: 15 | E10: 1500 | H10: Printer | I10: 100 | J10: 15 | K10: 1500
B11: CPU | C11: 150 | D11: 14 | E11: 2100 | H11: CPU | I11: 150 | J11: 14 | K11: 2100
B12: Total Sales | E12: =SUM(E5:E11) -> 17700 | H12: Total Sales | K12: =SUM(K5:K11) -> 24700

Sheet Iterative Calculation
B2: Enabling Iterative Calculation from File Tab | H2: Practice Section
B4: Product | C4: Delivered Status | D4: Delivery Time | H4: Product | I4: Delivered Status | J4: Delivery Time
B5: Desktop | D5: =IF(C5="yes", IF(D5="",NOW(), D5), "") ->  | H5: Desktop
B6: Laptop | C6: Yes | D6: =IF(C6="yes", IF(D6="",NOW(), D6), "") -> 2023-07-23T16:09:48.890 | H6: Laptop | I6: Yes
B7: Smartphone | H7: Smartphone
B8: Keyboard | C8: Yes | D8: 2023-07-23T16:09:48.900 | H8: Keyboard | I8: Yes
B9: Mouse | H9: Mouse
B10: Printer | C10: Yes | D10: 2023-07-23T16:09:48.900 | H10: Printer | I10: Yes
B11: CPU | H11: CPU

Sheet Setting Calculation Precision
B2: Setting Calculation Precision from File Tab | J2: Practice Section
B4: Product | C4: Price | D4: Quantity | E4: Sales | J4: Product | K4: Price | L4: Quantity | M4: Sales
B5: Desktop | C5: 200.002 | D5: 25 | E5: =C5*D5 -> 5000.05 | J5: Desktop | K5: 200.002 | L5: 25 | M5: =K5*L5 -> 5000.05
B6: Laptop | C6: 200.003 | D6: 15 | E6: =C6*D6 -> 3000.045 | J6: Laptop | K6: 200.003 | L6: 20 | M6: =K6*L6 -> 4000.06
B7: Smartphone | C7: 400 | D7: 14 | E7: 5600 | J7: Smartphone | K7: 400 | L7: 14 | M7: 5600
B8: Keyboard | C8: 50 | D8: 6 | E8: 300 | J8: Keyboard | K8: 50 | L8: 6 | M8: 300
B9: Mouse | C9: 20 | D9: 10 | E9: 200 | J9: Mouse | K9: 20 | L9: 10 | M9: 200
B10: Printer | C10: 100 | D10: 15 | E10: 1500 | J10: Printer | K10: 100 | L10: 15 | M10: 1500
B11: CPU | C11: 150 | D11: 14 | E11: 2100 | J11: CPU | K11: 150 | L11: 14 | M11: 2100
B13: Total Price of Desktop and Laptop | E13: =C5+C6 -> 400.005 | F13: =_xlfn.FORMULATEXT(E13) -> =C5+C6 | J13: Total Price of Desktop and Laptop | M13: =K5+K6 -> 400.005
B15: >>We Put 200.002 in Cell C5 and 200.003 in Cell C6 then Displayed them upto 2 Decimal Places So it is showing 400.01 in Cell E13 instead of 400.00
